fUSD/lending_fUSD_20240116
["ID","MTS","AMOUNT","RATE_DAILY","PERIOD"]
[311821392,1705436680915,3143.53137679,0.00022,2]
[311821393,1705436681029,847.18965958,0.00022,2]
[311821394,1705436681293,2779.50067626,0.00022,2]
[311821395,1705436681780,523.64138656,0.00022,2]
[311821396,1705436682243,3029.53701716,0.00022,2]
[311821397,1705436682677,286.58393191,0.00022,2]
[311821398,1705436683998,653.84551421,0.00022,2]
[311821399,1705436684066,361.6047312,0.00022,2]
[311821400,1705436684117,162.15651449,0.00022,2]
[311821401,1705436684615,651.41875051,0.00022,2]
[311821402,1705436685739,196.68352299,0.00021999,2]
[311821403,1705436685787,628.6804983,0.00022,2]
[311821404,1705436686152,847.05782835,0.00022,2]
[311821405,1705436688892,158.7458962,0.00022,2]
[311821406,1705436688923,174.13802115,0.00022,2]
[311821407,1705436689209,203.21930655,0.00022,2]
[311821408,1705436690107,2946.25066505,0.00022,2]
[311821409,1705436691024,400.0,0.00022,2]
[311821410,1705436691292,525.02684862,0.00022,2]
[311821411,1705436692284,1889.62325418,0.00022,2]
[311821412,1705436692589,202.80793574,0.00022,2]
[311821413,1705436693501,337.52245944,0.00022,2]
[311821414,1705436693714,386.84178679,0.00022,2]
[311821415,1705436694796,785.06384539,0.00022,2]
[311821416,1705436695320,1201.2434473,0.00022,2]
[311821417,1705436697309,759.80708657,0.00022,2]
[311821418,1705436697534,155.0,0.00022,2]
[311821419,1705436698243,419.53503609,0.00022,2]
[311821420,1705436698406,5099.53737617,0.00022,2]
[311821421,1705436698676,286.58393191,0.00022,2]
[311821422,1705436699248,16759.79956179,0.00022,2]
[311821423,1705436700215,42988.64588865,0.00022,2]
[311821424,1705436700424,4349.20960568,0.00022,2]
[311821425,1705436700917,3143.53137679,0.00022,2]
[311821426,1705436701398,196.68352299,0.00022,2]
[311821427,1705436701432,404.1868368,0.00022,2]
[311821428,1705436701781,161.15864914,0.00022,2]
[311821429,1705436701990,1369.29066614,0.00022,2]
[311821430,1705436702627,1852.21743683,0.00022,2]
[311821431,1705436703529,626.65013856,0.00022,2]
[311821432,1705436704226,1564.19473632,0.00022,2]
[311821433,1705436704908,174.13802115,0.00022,2]
[311821434,1705436705294,525.02684862,0.00022,2]
[311821435,1705436705444,2610.79581641,0.00022,2]
[311821436,1705436705671,7781.2432034,0.00022,2]
[311821437,1705436705803,242.40849757,0.00022,2]
[311821438,1705436706113,161.41029642,0.00022,2]
[311821439,1705436706298,161.72866539,0.00022,2]
[311821440,1705436707660,33366.42341033,0.00022,2]
[311821441,1705436708119,2946.25066505,0.00022,2]
[311821442,1705436709052,265.40939354,0.00022,2]
[311821443,1705436709186,203.21930655,0.00022,2]
[311821444,1705436709303,190.86952875,0.00022,2]
[311821445,1705436709351,1889.62325418,0.00021999,2]
[311821446,1705436709511,337.52245944,0.00021999,2]
[311821447,1705436709708,231.08863367,0.00021999,2]
[311821448,1705436711035,361.6047312,0.00022,2]
[311821449,1705436711063,400.0,0.00021999,2]
[311821450,1705436712889,158.84424989,0.00022,2]
[311821451,1705436713519,155.0,0.00022,2]
[311821452,1705436714672,286.58393191,0.00022,2]
[311821453,1705436715450,301.19606247,0.00022,2]
[311821454,1705436716120,42988.64588865,0.00022,2]
[311821455,1705436716342,5099.53737617,0.00022,2]
[311821456,1705436716427,4349.20960568,0.00022,2]
[311821457,1705436717146,16759.79956179,0.00022,2]
[311821458,1705436717418,402.85359733,0.00022,2]
[311821459,1705436718400,242.75876644,0.00022,2]
[311821460,1705436718941,651.41875051,0.00022,2]
[311821461,1705436719014,3143.53137679,0.00022,2]
[311821462,1705436719671,164.20594427,0.00022,2]
[311821463,1705436720632,1852.21743683,0.00022,2]
[311821464,1705436721442,436.3607182,0.00022,2]
[311821465,1705436722000,1169.87094501,0.00022,2]
[311821466,1705436722078,483.36917613,0.00022,2]
[311821467,1705436722613,486.6031582,0.00022,2]
[311821468,1705436723051,265.40939354,0.00022,2]
[311821469,1705436723284,523.11958136,0.00022,2]
[311821470,1705436724294,161.72866539,0.00022,2]
[311821471,1705436724919,174.13802115,0.00022,2]
[311821472,1705436725405,199.43712586,0.00022,2]
[311821473,1705436726105,2930.41521198,0.00022,2]
[311821474,1705436726451,190.86952875,0.00022,2]
[311821475,1705436726710,6709.07740062,0.00022,2]
[311821476,1705436729600,301.31425264,0.00022,2]
[311821477,1705436729742,203.21930655,0.00022,2]
[311821478,1705436731292,940.3187088,0.00022,2]
[311821479,1705436731326,1818.83757676,0.00022,2]
[311821480,1705436731411,387.4716013,0.00022,2]
[311821481,1705436731506,337.52245944,0.00022,2]
[311821482,1705436731534,302.89880783,0.00022,2]
[311821483,1705436732687,270.02680536,0.00022,2]
[311821484,1705436734509,3100.51260856,0.00022,2]
[311821485,1705436734757,296.19853608,0.00022,2]
[311821486,1705436735100,384.34681583,0.00022,2]
[311821487,1705436736016,39648.44946581,0.00022,2]
[311821488,1705436737319,16759.79956179,0.00022,2]
[311821489,1705436738338,5099.53737617,0.00022,2]
[311821490,1705436738611,616.06750201,0.00022,2]
[311821491,1705436738923,3143.53137679,0.00022,2]
[311821492,1705436740299,219.33998787,0.00022,2]
[311821493,1705436740753,1852.21743683,0.00022,2]
[311821494,1705436742780,190.86952875,0.00022,2]
[311821495,1705436742854,592.2763,0.00021905,2]
[311821496,1705436745050,265.40939354,0.00022,2]
[311821497,1705436745290,940.3187088,0.00022,2]
[311821498,1705436746926,173.16444065,0.00022,2]
[311821499,1705436749186,256.88655475,0.00022,2]
[311821500,1705436749510,214.21726289,0.00022,2]
[311821501,1705436754310,222.75436481,0.00021779,4]
[311821503,1705436758226,4936.8178,0.00021907,2]
[311821504,1705436758337,3444.04206321,0.00022,2]
[311821505,1705436758924,1493.95070322,0.00022,2]
[311821506,1705436759095,512.35768881,0.00022,2]
[311821507,1705436759156,16759.79956179,0.00022,2]
[311821508,1705436759191,155.0,0.00022,2]
[311821509,1705436760640,1804.75650745,0.00022,2]
[311821510,1705436762454,289.41828735,0.00022,2]
[311821511,1705436763297,771.27972717,0.00022,2]
[311821512,1705436767057,356.82463412,0.00022,2]
[311821513,1705436769796,523.09304668,0.00022,2]
[311821514,1705436770794,15918.7829,0.00021907,2]
[311821515,1705436775746,8402.195,0.00021907,2]
[311821516,1705436777163,16759.79956179,0.00022,2]
[311821517,1705436797160,7697.03828195,0.00022,2]
[311821518,1705436822134,150.0,0.00022,2]
[311821519,1705436823351,12889.9149,0.00021902,2]
[311821520,1705436835170,155.0,0.00022,2]
[311821523,1705436854969,496.28616688,0.00022,2]
[311821524,1705436865754,550.4073,0.00021901,2]
[311821525,1705436878106,10522.1197854,0.00022,2]
[311821526,1705436879241,6236.5926,0.00021901,2]
[311821527,1705436884276,487.53390948,0.00022,2]
[311821528,1705436896089,201.57911632,0.00022,2]
[311821529,1705436896969,19230.8846,0.00021901,2]
[311821532,1705436902860,3654.4737,0.00021902,2]
[311821535,1705436929328,2291.64283666,0.00022,2]
[311821536,1705436932059,7625.43768083,0.00022,2]
[311821537,1705436933771,386.53762894,0.00022,2]
[311821538,1705436935714,372.44307504,0.00022,2]
[311821539,1705436936217,159.03716147,0.00021901,2]
[311821540,1705436938675,515.40790408,0.00022,2]
[311821541,1705436938843,155.48797551,0.00022,2]
[311821542,1705436939389,524.10489141,0.00022,2]
[311821543,1705436946513,-172.75471988,0.00022001,2]
[311821544,1705436946542,-3999.5722838,0.00022001,2]
[311821545,1705436946575,-10382.67299632,0.00022001,2]
[311821546,1705436952659,166.3740861,0.00022,2]
[311821547,1705436953304,530.38236178,0.00022,2]
[311821548,1705436967444,418.95927661,0.00021989,2]
[311821549,1705436969807,215.1635691,0.00021978,2]
[311821550,1705436971482,354.27308638,0.00022,2]
[311821551,1705436972478,314.06282553,0.00022,2]
[311821552,1705436974114,246.50580772,0.00022,2]
[311821554,1705436974761,-252.04447886,0.00022001,2]
[311821555,1705436974789,-99747.95552114,0.00022001,2]
[311821556,1705436980901,155.0,0.00022,2]
[311821557,1705436981427,1870.17245242,0.00022,2]
[311821558,1705436982387,1177.41427021,0.00022,2]
[311821559,1705436982442,758.72176657,0.00022,2]
[311821560,1705436983484,916.37419282,0.00022,2]
[311821561,1705436989466,155.0,0.00022,2]
[311821563,1705437000469,-81853.98205829,0.00022001,2]
[311821564,1705437000495,-1092.0,0.00022001,2]
[311821565,1705437000523,-1044.20541595,0.00022002,2]
[311821566,1705437000549,-157.39865583,0.00022002,2]
[311821567,1705437000575,-155.1313233,0.00022002,2]
[311821568,1705437000602,-1137.38262952,0.00022002,2]
[311821569,1705437000628,-252.67288617,0.00022002,2]
[311821570,1705437000654,-301.91763047,0.00022002,2]
[311821571,1705437000680,-155.0,0.00022002,2]
[311821572,1705437000706,-1640.07824414,0.00022002,2]
[311821573,1705437000735,-232.94057765,0.00022002,2]
[311821574,1705437000762,-369.19666549,0.00022002,2]
[311821575,1705437000789,-2729.40501673,0.00022002,2]
[311821576,1705437000815,-177.33924332,0.00022002,2]
[311821577,1705437000840,-155.27713894,0.00022002,2]
[311821578,1705437000866,-155.0,0.00022002,2]
[311821579,1705437000891,-595.79214678,0.00022002,2]
[311821580,1705437016356,155.0,0.00022001,2]
[311821581,1705437029645,7640.28036742,0.00021901,2]
[311821582,1705437029669,135493.54473258,0.00021901,2]
[311821583,1705437031267,361.68593164,0.00020297,2]
[311821609,1705437031814,-155.0,0.00022001,2]
[311821611,1705437031823,-281.76,0.00022059,2]
[311821613,1705437031834,-808.89955573,0.00022078,2]
[311821615,1705437031843,-281.76,0.00022172,2]
[311821618,1705437031855,-281.76,0.00022284,2]
[311821620,1705437031866,-2116.34264777,0.00022301,2]
[311821622,1705437031876,-268.56,0.00022355,2]
[311821624,1705437031886,-174.54,0.00022355,2]
[311821625,1705437031895,-250.0,0.00022359,2]
[311821626,1705437031906,-500.0,0.00022376,3]
[311821628,1705437031917,-369.32,0.00022381,2]
[311821630,1705437031928,-281.76,0.00022397,2]
[311821632,1705437031938,-12294.16339703,0.000225,2]
[311821634,1705437031948,-281.76,0.00022509,2]
[311821635,1705437031957,-300.0,0.00022579,2]
[311821636,1705437031967,-1000.0,0.00022587,2]
[311821637,1705437031977,-2500.0,0.00022587,2]
[311821638,1705437031986,-281.76,0.00022622,2]
[311821639,1705437031996,-155.53796426,0.00022664,2]
[311821640,1705437032005,-288.51705321,0.00022664,2]
[311821641,1705437032015,-211.4343928,0.00022683,2]
[311821642,1705437032025,-285.64727706,0.00022683,2]
[311821643,1705437032034,-200.0,0.00022683,2]
[311821644,1705437032044,-376.78302695,0.00022684,2]
[311821645,1705437032053,-156.6051087,0.00022685,2]
[311821646,1705437032063,-256.13337218,0.00022685,2]
[311821647,1705437032072,-491.78375535,0.00022685,2]
[311821648,1705437032082,-3373.50447949,0.00022685,2]
[311821649,1705437032091,-355.16935246,0.00022685,2]
[311821650,1705437032101,-155.74477967,0.00022685,2]
[311821651,1705437032111,-155.22596484,0.00022685,2]
[311821652,1705437032120,-155.22013602,0.00022685,2]
[311821655,1705437032130,-281.76,0.00022734,2]
[311821658,1705437032139,-150.0,0.000228,2]
[311821661,1705437032149,-281.76,0.00022847,2]
[311821663,1705437032160,-281.76,0.00022959,2]
[311821665,1705437032171,-281.76,0.00023072,2]
[311821667,1705437032181,-281.76,0.00023185,2]
[311821668,1705437032191,-281.76,0.00023297,2]
[311821669,1705437032202,-174.54,0.00023334,2]
[311821670,1705437032212,-281.76,0.0002341,2]
[311821671,1705437032222,-281.76,0.00023522,2]
[311821672,1705437032233,-150.0,0.00023771,10]
[311821673,1705437032244,-214.12,0.00023968,2]
[311821674,1705437032254,-201.0574264,0.00024,2]
[311821675,1705437032264,-165.14,0.00024057,2]
[311821676,1705437032273,-153.35169239,0.00024095,4]
[311821677,1705437032283,-23900.0,0.00024095,2]
[311821678,1705437032294,-283.535,0.00024103,2]
[311821679,1705437032304,-174.54,0.00024312,2]
[311821680,1705437032314,-162.0,0.00024548,2]
[311821681,1705437032324,-162.0,0.00024615,2]
[311821682,1705437032334,-369.32,0.00024645,2]
[311821683,1705437032345,-250.0,0.00024658,2]
[311821684,1705437032355,-162.0,0.00024683,2]
[311821685,1705437032365,-162.0,0.0002475,2]
[311821686,1705437032374,-197.304923,0.00024771,7]
[311821687,1705437032383,-151.0,0.00024771,7]
[311821688,1705437032394,-161.458881,0.00024771,7]
[311821689,1705437032403,-151.0,0.00024771,7]
[311821690,1705437032413,-151.0,0.00024771,7]
[311821691,1705437032423,-157.807424,0.00024771,7]
[311821692,1705437032435,-157.807424,0.00024771,7]
[311821693,1705437032444,-162.0,0.00024817,2]
[311821694,1705437032454,-162.0,0.00024885,2]
[311821695,1705437032464,-170.8,0.0002495,2]
[311821696,1705437032475,-162.0,0.00024952,2]
[311821697,1705437032484,-1000.0,0.00025,2]
[311821698,1705437032494,-508.62062746,0.00025,2]
[311821699,1705437032506,-322.72569877,0.00025,2]
[311821700,1705437032522,-200.0,0.00025,2]
[311821701,1705437032533,-303.34687539,0.00025,2]
[311821702,1705437032542,-1583.52448944,0.00025,2]
[311821703,1705437032552,-450.0,0.00025,3]
[311821704,1705437032562,-933.54690587,0.00025017,2]
[311821705,1705437032572,-374.71049551,0.00025018,2]
[311821706,1705437032581,-162.0,0.00025019,2]
[311821707,1705437032590,-162.0,0.00025087,2]
[311821708,1705437032601,-280.13609182,0.00025118,2]
[311821709,1705437032611,-171.21009078,0.00025141,10]
[311821710,1705437032620,-162.0,0.00025154,2]
[311821711,1705437032630,-168.49641459,0.00025174,2]
[311821712,1705437032640,-519.59381181,0.00025174,2]
[311821713,1705437032649,-162.0,0.00025221,2]
[311821714,1705437032659,-197.304923,0.00025274,7]
[311821715,1705437032668,-151.0,0.00025274,7]
[311821716,1705437032677,-151.0,0.00025274,7]
[311821717,1705437032687,-151.0,0.00025274,7]
[311821718,1705437032696,-156.049945,0.00025274,7]
[311821719,1705437032706,-151.0,0.00025274,7]
[311821720,1705437032715,-151.0,0.00025274,7]
[311821721,1705437032725,-157.807424,0.00025274,7]
[311821722,1705437032735,-157.807424,0.00025274,7]
[311821723,1705437032745,-627.31671204,0.00025285,2]
[311821724,1705437032755,-162.0,0.00025289,2]
[311821725,1705437032765,-174.54,0.00025291,2]
[311821726,1705437032775,-162.0,0.00025356,2]
[311821727,1705437032785,-234.99742603,0.00025372,2]
[311821728,1705437032794,-155.0,0.00025372,2]
[311821729,1705437032804,-155.0,0.00025372,2]
[311821730,1705437032814,-915.350249,0.00025372,2]
[311821731,1705437032823,-538.07467241,0.00025372,2]
[311821732,1705437032833,-155.0,0.00025372,2]
[311821733,1705437032842,-202.52838964,0.00025372,2]
[311821734,1705437032852,-155.0,0.00025372,2]
[311821735,1705437032861,-155.0,0.00025372,2]
[311821736,1705437032870,-302.03531833,0.00025372,2]
[311821737,1705437032880,-155.0,0.00025372,2]
[311821738,1705437032889,-13977.73491798,0.00025372,2]
[311821739,1705437033961,-787.84619616,0.00025372,2]
[311821740,1705437033983,-9913.21268125,0.00025372,2]
[311821741,1705437033993,-155.0,0.00025373,2]
[311821742,1705437034002,-220.903327,0.00025373,2]
[311821743,1705437034011,-19505.60183101,0.00025374,2]
[311821744,1705437034024,-595.96207747,0.00025374,2]
[311821745,1705437034037,-382.0077164,0.00025374,2]
[311821746,1705437034050,-364.28267879,0.00025374,2]
[311821747,1705437034071,-2218.0260871,0.00025374,2]
[311821748,1705437034084,-734.66922033,0.00025374,2]
[311821749,1705437034097,-297.99553905,0.00025374,2]
[311821750,1705437034109,-16614.60870105,0.00025374,2]
[311821751,1705437034122,-1039.41097295,0.00025374,2]
[311821752,1705437034136,-1620.71715576,0.00025374,2]
[311821753,1705437034148,-63595.03319366,0.00025374,2]
[311821754,1705437034157,-162.0,0.00025423,2]
[311821755,1705437034168,-162.0,0.00025491,2]
[311821756,1705437034178,-162.0,0.00025558,2]
[311821757,1705437034190,-162.0,0.00025625,2]
[311821758,1705437034199,-162.0,0.00025693,2]
[311821759,1705437034209,-162.0,0.0002576,2]
[311821760,1705437034220,-162.0,0.00025827,2]
[311821761,1705437034232,-863.36,0.00026189,2]
[311821762,1705437034242,-174.54,0.00026269,2]
[311821763,1705437034252,-156.23,0.00026412,2]
[311821764,1705437034262,-8205.08,0.00026575,2]
[311821765,1705437034272,-519.5938118,0.00026804,2]
[311821766,1705437034282,-150.1,0.00026804,5]
[311821767,1705437034292,-627.31671203,0.00026888,2]
[311821768,1705437034303,-369.32,0.00026909,2]
[311821769,1705437034313,-159.8,0.00026984,2]
[311821770,1705437034324,-500.0,0.00027,3]
[311821771,1705437034333,-174.54,0.00027248,2]
[311821772,1705437034346,-155.0,0.00027397,2]
[311821773,1705437034356,-159.8,0.00027658,2]
[311821774,1705437034368,-364.25149533,0.00028,2]
[311821775,1705437034377,-202.97954373,0.00028,2]
[311821776,1705437034388,-156.23,0.00028069,2]
[311821777,1705437034400,-174.54,0.00028226,2]
[311821778,1705437034411,-159.8,0.00028333,2]
[311821779,1705437034421,-519.5938118,0.00028435,2]
[311821780,1705437034431,-627.31671203,0.00028491,2]
[311821781,1705437034445,-170.8,0.00028514,2]
[311821782,1705437034455,-155.0,0.00028767,2]
[311821783,1705437034465,-620.00585885,0.00028787,4]
[311821784,1705437034475,-550.0,0.00029,3]
[311821785,1705437034487,-159.8,0.00029007,2]
[311821786,1705437034497,-369.32,0.00029173,2]
[311821787,1705437034507,-174.54,0.00029205,2]
[311821788,1705437034517,-863.36,0.00029463,2]
[311821789,1705437034527,-3243.2,0.000295,2]
[311821790,1705437034537,-151.0,0.00029648,7]
[311821791,1705437034547,-151.0,0.00029648,7]
[311821792,1705437034556,-157.807424,0.00029648,7]
[311821793,1705437034565,-157.807424,0.00029648,7]
[311821794,1705437034575,-159.8,0.00029682,2]
[311821795,1705437034585,-156.23,0.00029725,2]
[311821796,1705437034596,-175.43459194,0.000298,2]
[311821797,1705437034606,-163.1575577,0.00029895,6]
[311821798,1705437034616,-39817.1612,0.00029895,2]
[311821799,1705437034626,-197.304923,0.00029895,7]
[311821800,1705437034635,-151.0,0.00029895,7]
[311821801,1705437034645,-151.0,0.00029895,7]
[311821802,1705437034655,-165.957704,0.00029895,7]
[311821803,1705437034665,-500.0,0.000299,2]
[311821804,1705437034675,-620.00585885,0.00029922,4]
[311821805,1705437034686,-151.0,0.00029999,7]
[311821806,1705437034695,-233.25516,0.00029999,7]
[311821807,1705437034705,-157.807424,0.00029999,7]
[311821808,1705437034714,-157.807424,0.00029999,7]
[311821809,1705437034726,-193.947414,0.00029999,7]
[311821810,1705437034736,-100000.0,0.0003,2]
[311821811,1705437034746,-197.304923,0.0003,7]
[311821812,1705437034755,-151.0,0.0003,7]
[311821813,1705437034765,-151.0,0.0003,7]
[311821814,1705437034774,-151.0,0.0003,7]
[311821815,1705437034784,-251.802171,0.0003,7]
[311821816,1705437034793,-151.0,0.0003,7]
[311821817,1705437034802,-151.0,0.0003,7]
[311821818,1705437034811,-4742.07012969,0.0003,4]
[311821819,1705437034820,-357.6331473,0.0003,2]
[311821820,1705437034829,-2812.39466919,0.0003,2]
[311821821,1705437034838,-2336.6632213,0.0003,3]
[311821822,1705437034851,-600.0,0.0003,3]
[311821823,1705437034871,-480.34451528,0.0003,3]
[311821824,1705437034881,-766.95294903,0.0003,2]
[311821825,1705437034900,-1733.04705097,0.0003,2]
[311821826,1705437034910,-770.36519149,0.0003,2]
[311821827,1705437034920,-9633.53610727,0.0003,2]
[311821828,1705437034930,-155.0,0.0003,2]
[311821829,1705437034939,-763.33861947,0.0003,4]
[311821830,1705437034948,-691.51374802,0.0003,2]
[311821831,1705437034958,-275.27127996,0.0003,2]
[311821832,1705437034973,-307.01377179,0.0003,2]
[311821833,1705437034984,-913.69900579,0.0003,2]
[311821834,1705437034995,-316.11110975,0.0003,2]
[311821835,1705437035009,-964.878106,0.0003,2]
[311821836,1705437035040,-6623.98306197,0.0003,2]
[311821837,1705437035052,-825.61972449,0.0003,2]
[311821838,1705437035063,-502.50678473,0.0003,2]
[311821839,1705437035075,-1073.34824939,0.0003,2]
[311821840,1705437035087,-5219.28884425,0.0003,2]
[311821841,1705437035096,-155.0,0.0003,2]
[311821842,1705437035106,-151.0,0.0003,7]
[311821843,1705437035115,-157.807424,0.0003,7]
[311821844,1705437035124,-157.807424,0.0003,7]
[311821845,1705437035135,-2000.0,0.0003,10]
[311821846,1705437035144,-519.5938118,0.00030065,2]
[311821847,1705437035153,-180.51841599,0.00030093,2]
[311821848,1705437035165,-446.79829604,0.00030093,2]
[311821849,1705437035174,-153.84,0.00030137,2]
[311821850,1705437035184,-155.0,0.00030137,2]
[311821851,1705437035194,-174.54,0.00030183,2]
[311821852,1705437035203,-151.95219511,0.0003021,2]
[311821853,1705437035213,-380.0,0.000305,5]
[311821854,1705437035223,-176.23,0.000305,2]
[311821855,1705437035233,-500.0,0.000305,2]
[311821856,1705437035242,-1990.9202535,0.00030522,2]
[311821857,1705437035255,-544.02,0.00030522,2]
[311821858,1705437035288,-650.95813285,0.00030522,2]
[311821859,1705437035298,-800.0,0.00030652,5]
[311821860,1705437035308,-280.35462255,0.00030741,4]
[311821861,1705437035317,-845.72452933,0.00030775,4]
[311821862,1705437035329,-1154.27547067,0.00030775,4]
[311821863,1705437035340,-204.0,0.00030924,2]
[311821864,1705437035349,-191.86904009,0.00030994,14]
[311821865,1705437035358,-4777.230701,0.00030994,2]
[311821866,1705437035368,-100000.0,0.00031,2]
[311821867,1705437035377,-197.304923,0.00031,7]
[311821868,1705437035387,-151.0,0.00031,7]
[311821869,1705437035396,-151.0,0.00031,7]
[311821870,1705437035406,-151.0,0.00031,7]
[311821871,1705437035415,-151.0,0.00031,7]
[311821872,1705437035424,-151.0,0.00031,7]
[311821873,1705437035438,-151.0,0.00031,7]
[311821874,1705437035447,-157.804064,0.00031,7]
[311821875,1705437035457,-151.0,0.00031,7]
[311821876,1705437035466,-151.0,0.00031,7]
[311821877,1705437035476,-151.0,0.00031,7]
[311821878,1705437035486,-151.0,0.00031,7]
[311821879,1705437035495,-211.602703,0.00031,7]
[311821880,1705437035504,-291.469942,0.00031,7]
[311821881,1705437035516,-153.790289,0.00031,7]
[311821882,1705437035526,-151.0,0.00031,2]
[311821883,1705437035534,-2000.0,0.00031,2]
[311821884,1705437035544,-2000.0,0.00031,2]
[311821885,1705437035552,-2000.0,0.00031,2]
[311821886,1705437035561,-2000.0,0.00031,2]
[311821887,1705437035569,-2000.0,0.00031,2]
[311821888,1705437035578,-2000.0,0.00031,2]
[311821889,1705437035588,-1622.04146861,0.00031,2]
[311821890,1705437035600,-377.95853139,0.00031,2]
[311821891,1705437035610,-1321.19695247,0.00031,2]
[311821892,1705437035621,-656.44624679,0.00031,2]
[311821893,1705437035633,-22.35680074,0.00031,2]
[311821894,1705437035643,-151.0,0.00031,7]
[311821895,1705437035652,-157.807424,0.00031,7]
[311821896,1705437035662,-169.72072362,0.00031,3]
[311821897,1705437035673,-430.27927638,0.00031,3]
[311821898,1705437035683,-157.807424,0.00031,7]
[311821899,1705437035693,-351.52,0.00031048,2]
[311821900,1705437035703,-500.0,0.00031048,2]
[311821901,1705437035712,-153.84,0.0003105,2]
[311821902,1705437035722,-620.00585885,0.00031056,5]
[311821903,1705437035733,-2115.24744077,0.00031118,2]
[311821904,1705437035744,-500.00054805,0.00031118,2]
[311821905,1705437035756,-911.68,0.00031118,2]
[311821906,1705437035777,-708.98897792,0.00031118,2]
[311821907,1705437035907,-541.31373426,0.00031118,2]
[311821908,1705437035917,-174.54,0.00031162,2]
[311821909,1705437035926,-4388.14626574,0.00031242,2]
[311821910,1705437035938,-389.08443526,0.00031242,2]
[311821911,1705437035948,-268.56,0.00031298,2]
[311821912,1705437035956,-180.05331167,0.00031366,2]
[311821929,1705437038372,260.10440019,0.00022,2]
[311821931,1705437038385,-155.0,0.00022001,2]
[311821933,1705437038394,-211.15591662,0.00031366,2]
[311821936,1705437038406,-2349.81200394,0.00031366,2]
[311821938,1705437038421,-2036.20946877,0.00031366,2]
[311821940,1705437038431,-304.94328379,0.0003138,4]
[311821942,1705437038441,-156.23,0.00031381,2]
[311821944,1705437038451,-304.94328377,0.0003141,4]
[311821946,1705437038461,-369.32,0.00031437,2]
[311821948,1705437038470,-304.94328377,0.00031439,4]
[311821950,1705437038480,-155.0,0.00031475,4]
[311821952,1705437038489,-4269.32574779,0.00031475,4]
[311821954,1705437038498,-155.0,0.00031475,4]
[311821956,1705437038508,-155.0,0.00031475,4]
[311821958,1705437038517,-3326.78039808,0.00031475,4]
[311821960,1705437038527,-285.19932083,0.00031475,4]
[311821962,1705437038537,-581.48502557,0.00031475,4]
[311821964,1705437038546,-1428.03589514,0.00031475,2]
[311821966,1705437038555,-3856.82715024,0.00031475,4]
[311821968,1705437038564,-496.27788702,0.00031475,4]
[311821970,1705437038573,-4684.13457177,0.00031476,4]
[311821972,1705437038582,-242.671706,0.00031478,7]
[311821974,1705437038591,-151.0,0.00031478,7]
[311821976,1705437038601,-151.0,0.00031478,7]
[311821978,1705437038610,-151.0,0.00031478,7]
[311821980,1705437038619,-151.0,0.00031478,7]
[311821981,1705437038629,-607797.0,0.00031478,2]
[311821983,1705437038638,-3000.0,0.0003148,2]
[311821985,1705437038648,-4777.230701,0.00031491,2]
[311821987,1705437038657,-443.79,0.00031507,2]
[311821989,1705437038667,-155.0,0.00031507,2]
[311821991,1705437038676,-347.6176,0.00031539,2]
[311821993,1705437038686,-11691.572,0.00031539,2]
[311821995,1705437038695,-800.0,0.00031544,5]